[Event "Titled Tuesday Blitz March 14 Late 2023"]
[White "Comas Fabrego, Lluis"]
[Black "Riff, Vincent"]
[WhiteFideId "2200325"]
[BlackFideId "617776"]
[WhiteElo "2523"]
[BlackElo "2369"]
[Result "0-1"]
[Round "03"]
[TimeControl "180+2"]
[Date "2023.03.14"]
[WhiteClock "0:00:16"]
[BlackClock "0:00:26"]

1. Nf3 {[%clk 0:03:00]}  Nf6 {[%clk 0:02:54]} 2. c4 {[%clk 0:02:59]}  e6 {[%clk 0:02:53]} 3. b3 {[%clk 0:02:59]}  b6 {[%clk 0:02:48]} 4. g3 {[%clk 0:02:58]}  Bb7 {[%clk 0:02:48]} 5. Bg2 {[%clk 0:02:59]}  g6 {[%clk 0:02:46]} 6. Bb2 {[%clk 0:02:58]}  Bg7 {[%clk 0:02:47]} 7. O-O {[%clk 0:02:58]}  O-O {[%clk 0:02:47]} 8. d3 {[%clk 0:02:55]}  d6 {[%clk 0:02:48]} 9. e4 {[%clk 0:02:54]}  Nbd7 {[%clk 0:02:48]} 10. Nc3 {[%clk 0:02:54]}  a6 {[%clk 0:02:46]} 11. Re1 {[%clk 0:02:54]}  c5 {[%clk 0:02:44]} 12. d4 {[%clk 0:02:51]}  Qc7 {[%clk 0:02:43]} 13. Rc1 {[%clk 0:02:45]}  Rad8 {[%clk 0:02:34]} 14. Qe2 {[%clk 0:02:27]}  Rfe8 {[%clk 0:02:26]} 15. h3 {[%clk 0:02:25]}  Qb8 {[%clk 0:02:00]} 16. Rcd1 {[%clk 0:02:07]}  Qa8 {[%clk 0:01:48]} 17. d5 {[%clk 0:02:01]}  exd5 {[%clk 0:01:47]} 18. cxd5 {[%clk 0:01:55]}  b5 {[%clk 0:01:40]} 19. Qc2 {[%clk 0:01:28]}  Re7 {[%clk 0:01:11]} 20. Nb1 {[%clk 0:01:24]}  Rde8 {[%clk 0:01:06]} 21. e5 {[%clk 0:01:13]}  Nxd5 {[%clk 0:01:03]} 22. exd6 {[%clk 0:01:09]}  Rxe1+ {[%clk 0:01:03]} 23. Rxe1 {[%clk 0:01:08]}  Nb4 {[%clk 0:01:01]} 24. Rxe8+ {[%clk 0:00:55]}  Qxe8 {[%clk 0:01:02]} 25. Qd2 {[%clk 0:00:55]}  Bxb2 {[%clk 0:00:40]} 26. Qxb2 {[%clk 0:00:54]}  Qe6 {[%clk 0:00:39]} 27. Qd2 {[%clk 0:00:48]}  Qd5 {[%clk 0:00:39]} 28. Qxd5 {[%clk 0:00:46]}  Bxd5 {[%clk 0:00:40]} 29. Nc3 {[%clk 0:00:45]}  Bxf3 {[%clk 0:00:38]} 30. Bxf3 {[%clk 0:00:45]}  Kf8 {[%clk 0:00:38]} 31. a3 {[%clk 0:00:44]}  Nc2 {[%clk 0:00:37]} 32. a4 {[%clk 0:00:37]}  Nd4 {[%clk 0:00:37]} 33. Bd1 {[%clk 0:00:35]}  b4 {[%clk 0:00:34]} 34. Nd5 {[%clk 0:00:34]}  Nf5 {[%clk 0:00:34]} 35. Nc7 {[%clk 0:00:33]}  Nxd6 {[%clk 0:00:33]} 36. Nxa6 {[%clk 0:00:32]}  Ke7 {[%clk 0:00:32]} 37. Nc7 {[%clk 0:00:32]}  Kf6 {[%clk 0:00:32]} 38. a5 {[%clk 0:00:31]}  Nc8 {[%clk 0:00:32]} 39. a6 {[%clk 0:00:30]}  Na7 {[%clk 0:00:32]} 40. Nd5+ {[%clk 0:00:28]}  Ke5 {[%clk 0:00:31]} 41. Ne3 {[%clk 0:00:26]}  Kd4 {[%clk 0:00:32]} 42. Be2 {[%clk 0:00:26]}  Kc3 {[%clk 0:00:32]} 43. Bc4 {[%clk 0:00:26]}  Ne5 {[%clk 0:00:32]} 44. Bd5 {[%clk 0:00:26]}  f5 {[%clk 0:00:28]} 45. f4 {[%clk 0:00:26]}  Nd3 {[%clk 0:00:28]} 46. Bg8 {[%clk 0:00:23]}  Nc1 {[%clk 0:00:27]} 47. Bxh7 {[%clk 0:00:22]}  Nxb3 {[%clk 0:00:27]} 48. Bxg6 {[%clk 0:00:22]}  Nd4 {[%clk 0:00:27]} 49. Bf7 {[%clk 0:00:19]}  b3 {[%clk 0:00:27]} 50. h4 {[%clk 0:00:18]}  b2 {[%clk 0:00:26]} 51. Ba2 {[%clk 0:00:18]}  Kd2 {[%clk 0:00:25]} 52. h5 {[%clk 0:00:18]}  Kxe3 {[%clk 0:00:24]} 53. h6 {[%clk 0:00:18]}  Ne2+ {[%clk 0:00:25]} 54. Kg2 {[%clk 0:00:17]}  Nc3 {[%clk 0:00:25]} 55. h7 {[%clk 0:00:17]}  Nxa2 {[%clk 0:00:25]} 56. h8=Q {[%clk 0:00:17]}  b1=Q {[%clk 0:00:26]} 57. Qe5+ {[%clk 0:00:16]}  Qe4+ {[%clk 0:00:26]} 58. Qxe4+ {[%clk 0:00:16]}  Kxe4 {[%clk 0:00:26]} 59. Kh3 {[%clk 0:00:16]}  c4 {[%clk 0:00:26]} 60. Kg2 {[%clk 0:00:16]}  c3 {[%clk 0:00:26]} 0-1


[Site "https://www.chess.com"]

[Event "Titled Tuesday Blitz March 14 Late 2023"]
[White "Fan_Of_Chucky"]
[Black "Rasulov, Vugar"]
[BlackFideId "13402390"]
[WhiteElo "2330"]
[BlackElo "2509"]
[Result "0-1"]
[Round "03"]
[TimeControl "180+2"]
[Date "2023.03.14"]
[WhiteClock "0:00:03"]
[BlackClock "0:01:37"]

1. d4 {[%clk 0:03:00]}  Nf6 {[%clk 0:02:58]} 2. c4 {[%clk 0:03:00]}  e6 {[%clk 0:02:57]} 3. Nf3 {[%clk 0:03:00]}  Bb4+ {[%clk 0:02:57]} 4. Bd2 {[%clk 0:02:59]}  a5 {[%clk 0:02:56]} 5. g3 {[%clk 0:02:56]}  b6 {[%clk 0:02:56]} 6. Bg2 {[%clk 0:02:51]}  Bb7 {[%clk 0:02:56]} 7. O-O {[%clk 0:02:47]}  O-O {[%clk 0:02:56]} 8. Bf4 {[%clk 0:02:29]}  Na6 {[%clk 0:02:49]} 9. a3 {[%clk 0:02:22]}  Be7 {[%clk 0:02:48]} 10. Nc3 {[%clk 0:02:19]}  Ne4 {[%clk 0:02:46]} 11. d5 {[%clk 0:01:54]}  Nxc3 {[%clk 0:02:45]} 12. bxc3 {[%clk 0:01:53]}  Nc5 {[%clk 0:02:43]} 13. d6 {[%clk 0:01:46]}  cxd6 {[%clk 0:02:42]} 14. Bxd6 {[%clk 0:01:47]}  Rc8 {[%clk 0:02:36]} 15. Rb1 {[%clk 0:00:53]}  Re8 {[%clk 0:02:15]} 16. Ne5 {[%clk 0:00:38]}  Bxg2 {[%clk 0:02:11]} 17. Kxg2 {[%clk 0:00:39]}  f6 {[%clk 0:02:05]} 18. Nf3 {[%clk 0:00:26]}  Bxd6 {[%clk 0:01:59]} 19. Qxd6 {[%clk 0:00:25]}  Rc6 {[%clk 0:02:00]} 20. Qd4 {[%clk 0:00:22]}  Qc7 {[%clk 0:01:58]} 21. Rfd1 {[%clk 0:00:21]}  Rc8 {[%clk 0:01:53]} 22. Rb5 {[%clk 0:00:15]}  d6 {[%clk 0:01:50]} 23. Rdb1 {[%clk 0:00:12]}  Nd7 {[%clk 0:01:44]} 24. Nd2 {[%clk 0:00:12]}  Rc5 {[%clk 0:01:39]} 25. Rxc5 {[%clk 0:00:03]}  Nxc5 {[%clk 0:01:39]} 26. Ne4 {[%clk 0:00:03]}  Qc6 {[%clk 0:01:37]} 0-1


[Site "https://www.chess.com"]

[Event "Titled Tuesday Blitz March 14 Late 2023"]
[White "Bogaudinov, Rushan"]
[Black "Defend, Balint"]
[WhiteFideId "4129288"]
[BlackFideId "17004853"]
[WhiteElo "1949"]
[BlackElo "2522"]
[Result "1-0"]
[Round "03"]
[TimeControl "180+2"]
[Date "2023.03.14"]
[WhiteClock "0:00:31"]
[BlackClock "0:00:17"]

1. d4 {[%clk 0:02:21]}  Nf6 {[%clk 0:02:54]} 2. g3 {[%clk 0:02:21]}  e6 {[%clk 0:02:54]} 3. Bg2 {[%clk 0:02:22]}  d5 {[%clk 0:02:47]} 4. Nf3 {[%clk 0:02:21]}  c5 {[%clk 0:02:37]} 5. O-O {[%clk 0:02:21]}  Nc6 {[%clk 0:02:35]} 6. c3 {[%clk 0:02:21]}  Be7 {[%clk 0:02:33]} 7. dxc5 {[%clk 0:02:20]}  Bxc5 {[%clk 0:02:33]} 8. b4 {[%clk 0:02:21]}  Bb6 {[%clk 0:02:32]} 9. a3 {[%clk 0:02:22]}  O-O {[%clk 0:02:31]} 10. Nbd2 {[%clk 0:02:20]}  Qc7 {[%clk 0:02:25]} 11. Bb2 {[%clk 0:02:20]}  Rd8 {[%clk 0:02:25]} 12. Qc2 {[%clk 0:02:18]}  e5 {[%clk 0:01:55]} 13. e4 {[%clk 0:02:10]}  a6 {[%clk 0:01:41]} 14. Rac1 {[%clk 0:02:04]}  Be6 {[%clk 0:01:33]} 15. Ng5 {[%clk 0:01:57]}  Bg4 {[%clk 0:01:24]} 16. h3 {[%clk 0:01:54]}  Bh5 {[%clk 0:01:23]} 17. exd5 {[%clk 0:01:49]}  Bg6 {[%clk 0:01:19]} 18. Qb3 {[%clk 0:01:47]}  Ne7 {[%clk 0:01:14]} 19. c4 {[%clk 0:01:46]}  Bd4 {[%clk 0:01:14]} 20. Rfe1 {[%clk 0:01:35]}  Nf5 {[%clk 0:01:09]} 21. c5 {[%clk 0:01:29]}  h6 {[%clk 0:00:58]} 22. d6 {[%clk 0:01:27]}  Qd7 {[%clk 0:00:55]} 23. Ngf3 {[%clk 0:01:24]}  Bxb2 {[%clk 0:00:50]} 24. Qxb2 {[%clk 0:01:24]}  e4 {[%clk 0:00:50]} 25. Ne5 {[%clk 0:01:23]}  Qe6 {[%clk 0:00:46]} 26. Nxg6 {[%clk 0:01:19]}  fxg6 {[%clk 0:00:47]} 27. Nxe4 {[%clk 0:01:15]}  Nxe4 {[%clk 0:00:43]} 28. Rxe4 {[%clk 0:01:14]}  Qf7 {[%clk 0:00:40]} 29. Rf4 {[%clk 0:01:09]}  Qd7 {[%clk 0:00:37]} 30. Re1 {[%clk 0:00:58]}  Re8 {[%clk 0:00:38]} 31. Rfe4 {[%clk 0:00:58]}  Rxe4 {[%clk 0:00:38]} 32. Rxe4 {[%clk 0:00:58]}  Re8 {[%clk 0:00:38]} 33. Qe2 {[%clk 0:00:57]}  Rf8 {[%clk 0:00:37]} 34. Qc4+ {[%clk 0:00:52]}  Kh8 {[%clk 0:00:36]} 35. Qe6 {[%clk 0:00:51]}  Qa4 {[%clk 0:00:27]} 36. d7 {[%clk 0:00:44]}  Kh7 {[%clk 0:00:18]} 37. h4 {[%clk 0:00:35]}  Rd8 {[%clk 0:00:17]} 38. h5 {[%clk 0:00:34]}  Qxd7 {[%clk 0:00:17]} 39. hxg6+ {[%clk 0:00:31]}  Kh8 {[%clk 0:00:16]} 40. Qxd7 {[%clk 0:00:31]}  Rxd7 {[%clk 0:00:17]} 41. Re8# {[%clk 0:00:31]} 1-0


[Site "https://www.chess.com"]

[Event "Titled Tuesday Blitz March 14 Late 2023"]
[White "Sokolin, Leonid"]
[Black "Gamage, Wanshini Vidusama"]
[WhiteFideId "2009161"]
[BlackFideId "9953752"]
[WhiteElo "2394"]
[BlackElo "2264"]
[Result "1-0"]
[Round "03"]
[TimeControl "180+2"]
[Date "2023.03.14"]
[WhiteClock "0:02:18"]
[BlackClock "0:02:27"]

1. e4 {[%clk 0:03:00]}  c5 {[%clk 0:03:00]} 2. Nf3 {[%clk 0:03:00]}  d6 {[%clk 0:03:00]} 3. d4 {[%clk 0:02:59]}  cxd4 {[%clk 0:03:01]} 4. Qxd4 {[%clk 0:02:59]}  Nc6 {[%clk 0:03:00]} 5. Qe3 {[%clk 0:02:59]}  g6 {[%clk 0:02:57]} 6. Be2 {[%clk 0:02:54]}  Bh6 {[%clk 0:02:57]} 7. Qc3 {[%clk 0:02:50]}  Qa5 {[%clk 0:02:55]} 8. Qxa5 {[%clk 0:02:41]}  Nxa5 {[%clk 0:02:56]} 9. Bxh6 {[%clk 0:02:41]}  Nxh6 {[%clk 0:02:55]} 10. Nc3 {[%clk 0:02:41]}  O-O {[%clk 0:02:50]} 11. Nd4 {[%clk 0:02:35]}  a6 {[%clk 0:02:47]} 12. Nd5 {[%clk 0:02:32]}  e6 {[%clk 0:02:31]} 13. Nb6 {[%clk 0:02:25]}  Rb8 {[%clk 0:02:30]} 14. O-O-O {[%clk 0:02:19]}  Ng4 {[%clk 0:02:27]} 15. Bxg4 {[%clk 0:02:18]} 1-0


[Site "https://www.chess.com"]

[Event "Titled Tuesday Blitz March 14 Late 2023"]
[White "Tagliati, Eleonore"]
[Black "Gatterer, Florian"]
[WhiteFideId "45172234"]
[BlackFideId "811688"]
[WhiteElo "2213"]
[BlackElo "2221"]
[Result "1/2-1/2"]
[Round "03"]
[TimeControl "180+2"]
[Date "2023.03.14"]
[WhiteClock "0:02:17"]
[BlackClock "0:01:51"]

1. e4 {[%clk 0:03:00]}  c5 {[%clk 0:03:00]} 2. Nf3 {[%clk 0:03:00]}  e6 {[%clk 0:03:00]} 3. d4 {[%clk 0:02:59]}  cxd4 {[%clk 0:03:01]} 4. Nxd4 {[%clk 0:03:00]}  Nf6 {[%clk 0:03:01]} 5. Nc3 {[%clk 0:02:59]}  Nc6 {[%clk 0:03:01]} 6. Ndb5 {[%clk 0:02:59]}  Bc5 {[%clk 0:03:01]} 7. Bf4 {[%clk 0:02:32]}  O-O {[%clk 0:03:00]} 8. Be2 {[%clk 0:02:30]}  a6 {[%clk 0:02:45]} 9. Nd6 {[%clk 0:02:26]}  Qb6 {[%clk 0:02:02]} 10. O-O {[%clk 0:02:17]}  e5 {[%clk 0:01:51]} 1/2-1/2


[Site "https://www.chess.com"]

[Event "Titled Tuesday Blitz March 14 Late 2023"]
[White "Salgado Lopez, Ivan"]
[Black "Topalov, Aleksandar"]
[WhiteFideId "2257327"]
[BlackFideId "925659"]
[WhiteElo "2571"]
[BlackElo "2151"]
[Result "1-0"]
[Round "03"]
[TimeControl "180+2"]
[Date "2023.03.14"]
[WhiteClock "0:00:23"]
[BlackClock "0:00:46"]

1. e4 {[%clk 0:03:00]}  e6 {[%clk 0:02:59]} 2. d4 {[%clk 0:03:00]}  d5 {[%clk 0:02:59]} 3. e5 {[%clk 0:03:00]}  Ne7 {[%clk 0:02:59]} 4. c3 {[%clk 0:02:58]}  Qd7 {[%clk 0:02:59]} 5. Nf3 {[%clk 0:02:52]}  b6 {[%clk 0:02:59]} 6. Be3 {[%clk 0:02:33]}  Ba6 {[%clk 0:02:58]} 7. Nbd2 {[%clk 0:02:34]}  Bxf1 {[%clk 0:02:57]} 8. Nxf1 {[%clk 0:02:32]}  Nf5 {[%clk 0:02:57]} 9. Qd2 {[%clk 0:02:22]}  c5 {[%clk 0:02:57]} 10. g4 {[%clk 0:02:17]}  Nxe3 {[%clk 0:02:56]} 11. fxe3 {[%clk 0:02:11]}  Nc6 {[%clk 0:02:51]} 12. Ng3 {[%clk 0:02:10]}  Be7 {[%clk 0:02:49]} 13. O-O {[%clk 0:02:09]}  O-O {[%clk 0:02:47]} 14. Rf2 {[%clk 0:02:00]}  f6 {[%clk 0:02:46]} 15. exf6 {[%clk 0:01:51]}  Bxf6 {[%clk 0:02:45]} 16. Raf1 {[%clk 0:01:48]}  Be7 {[%clk 0:02:35]} 17. h3 {[%clk 0:01:35]}  Bd6 {[%clk 0:02:34]} 18. Rg2 {[%clk 0:01:26]}  Bc7 {[%clk 0:02:09]} 19. Nh2 {[%clk 0:01:13]}  Rxf1+ {[%clk 0:02:05]} 20. Nhxf1 {[%clk 0:01:10]}  Rf8 {[%clk 0:02:04]} 21. Rf2 {[%clk 0:01:09]}  Rxf2 {[%clk 0:01:54]} 22. Qxf2 {[%clk 0:01:08]}  e5 {[%clk 0:01:51]} 23. dxc5 {[%clk 0:01:01]}  bxc5 {[%clk 0:01:51]} 24. Qf5 {[%clk 0:00:51]}  Qxf5 {[%clk 0:01:47]} 25. Nxf5 {[%clk 0:00:51]}  g6 {[%clk 0:01:46]} 26. N5g3 {[%clk 0:00:45]}  e4 {[%clk 0:01:46]} 27. Ne2 {[%clk 0:00:41]}  Ne5 {[%clk 0:01:41]} 28. Nd2 {[%clk 0:00:33]}  c4 {[%clk 0:01:11]} 29. Nf4 {[%clk 0:00:27]}  Nd3 {[%clk 0:01:03]} 30. Nxd5 {[%clk 0:00:26]}  Be5 {[%clk 0:00:50]} 31. Nxc4 {[%clk 0:00:25]}  Bg3 {[%clk 0:00:47]} 32. Nf6+ {[%clk 0:00:23]}  Kg7 {[%clk 0:00:46]} 33. Nxe4 {[%clk 0:00:23]} 1-0


[Site "https://www.chess.com"]

[Event "Titled Tuesday Blitz March 14 Late 2023"]
[White "Souza, Gustavo Horokoski De"]
[Black "Mickiewicz, Piotr"]
[WhiteFideId "2146584"]
[BlackFideId "1114891"]
[WhiteElo "1859"]
[BlackElo "2246"]
[Result "0-1"]
[Round "03"]
[TimeControl "180+2"]
[Date "2023.03.14"]
[WhiteClock "0:00:03"]
[BlackClock "0:00:28"]

1. d4 {[%clk 0:00:54]}  Nf6 {[%clk 0:02:57]} 2. c4 {[%clk 0:00:54]}  e6 {[%clk 0:02:57]} 3. Nc3 {[%clk 0:00:54]}  Bb4 {[%clk 0:02:52]} 4. e3 {[%clk 0:00:54]}  d5 {[%clk 0:02:51]} 5. Ne2 {[%clk 0:00:54]}  O-O {[%clk 0:02:45]} 6. a3 {[%clk 0:00:54]}  Be7 {[%clk 0:02:44]} 7. Nf4 {[%clk 0:00:52]}  a5 {[%clk 0:02:42]} 8. b3 {[%clk 0:00:49]}  b6 {[%clk 0:02:41]} 9. Bb2 {[%clk 0:00:49]}  Bb7 {[%clk 0:02:40]} 10. Rc1 {[%clk 0:00:49]}  Nbd7 {[%clk 0:02:38]} 11. Be2 {[%clk 0:00:46]}  Re8 {[%clk 0:02:37]} 12. Bf3 {[%clk 0:00:45]}  c6 {[%clk 0:02:36]} 13. O-O {[%clk 0:00:45]}  Bd6 {[%clk 0:02:35]} 14. Nd3 {[%clk 0:00:44]}  Qb8 {[%clk 0:02:29]} 15. h3 {[%clk 0:00:43]}  dxc4 {[%clk 0:02:26]} 16. bxc4 {[%clk 0:00:42]}  c5 {[%clk 0:02:27]} 17. d5 {[%clk 0:00:37]}  exd5 {[%clk 0:02:23]} 18. Nxd5 {[%clk 0:00:36]}  Bxd5 {[%clk 0:02:15]} 19. Bxd5 {[%clk 0:00:32]}  b5 {[%clk 0:02:12]} 20. Bxa8 {[%clk 0:00:31]}  Qxa8 {[%clk 0:02:09]} 21. cxb5 {[%clk 0:00:29]}  Rc8 {[%clk 0:01:55]} 22. a4 {[%clk 0:00:29]}  c4 {[%clk 0:01:54]} 23. Nf4 {[%clk 0:00:29]}  Bxf4 {[%clk 0:01:48]} 24. exf4 {[%clk 0:00:28]}  Qe4 {[%clk 0:01:47]} 25. Qd4 {[%clk 0:00:25]}  Qxd4 {[%clk 0:01:43]} 26. Bxd4 {[%clk 0:00:26]}  Nd5 {[%clk 0:01:43]} 27. g3 {[%clk 0:00:23]}  h5 {[%clk 0:01:42]} 28. Rc2 {[%clk 0:00:23]}  Nb4 {[%clk 0:01:42]} 29. Rc3 {[%clk 0:00:20]}  Nd5 {[%clk 0:01:42]} 30. Rc2 {[%clk 0:00:18]}  N7b6 {[%clk 0:01:41]} 31. Bxb6 {[%clk 0:00:17]}  Nxb6 {[%clk 0:01:42]} 32. Rfc1 {[%clk 0:00:17]}  Rd8 {[%clk 0:01:43]} 33. Kg2 {[%clk 0:00:16]}  Rd4 {[%clk 0:01:42]} 34. Kf3 {[%clk 0:00:16]}  f5 {[%clk 0:01:42]} 35. Ke3 {[%clk 0:00:16]}  Re4+ {[%clk 0:01:43]} 36. Kf3 {[%clk 0:00:16]}  Kf7 {[%clk 0:01:44]} 37. Kg2 {[%clk 0:00:15]}  g6 {[%clk 0:01:42]} 38. f3 {[%clk 0:00:16]}  Rd4 {[%clk 0:01:34]} 39. Kf2 {[%clk 0:00:16]}  Ke6 {[%clk 0:01:34]} 40. Ke3 {[%clk 0:00:16]}  Rd3+ {[%clk 0:01:34]} 41. Kf2 {[%clk 0:00:16]}  Rd4 {[%clk 0:01:30]} 42. Ke3 {[%clk 0:00:16]}  Rd3+ {[%clk 0:01:30]} 43. Ke2 {[%clk 0:00:17]}  Ra3 {[%clk 0:01:27]} 44. Rxc4 {[%clk 0:00:16]}  Nxc4 {[%clk 0:01:28]} 45. Rxc4 {[%clk 0:00:17]}  Kd5 {[%clk 0:01:28]} 46. Rc6 {[%clk 0:00:16]}  Rxa4 {[%clk 0:01:27]} 47. Rxg6 {[%clk 0:00:17]}  Rb4 {[%clk 0:01:27]} 48. b6 {[%clk 0:00:14]}  a4 {[%clk 0:01:25]} 49. Kd2 {[%clk 0:00:14]}  Kd4 {[%clk 0:01:22]} 50. Rd6+ {[%clk 0:00:13]}  Kc5 {[%clk 0:01:22]} 51. Rf6 {[%clk 0:00:13]}  a3 {[%clk 0:01:06]} 52. b7 {[%clk 0:00:12]}  Kc4 {[%clk 0:00:56]} 53. Ra6 {[%clk 0:00:10]}  Kb3 {[%clk 0:00:57]} 54. Ra8 {[%clk 0:00:08]}  Rxb7 {[%clk 0:00:56]} 55. g4 {[%clk 0:00:09]}  Kb2 {[%clk 0:00:52]} 56. gxh5 {[%clk 0:00:07]}  a2 {[%clk 0:00:49]} 57. Ke3 {[%clk 0:00:07]}  a1=Q {[%clk 0:00:46]} 58. Rxa1 {[%clk 0:00:06]}  Kxa1 {[%clk 0:00:47]} 59. Kd4 {[%clk 0:00:07]}  Re7 {[%clk 0:00:48]} 60. h6 {[%clk 0:00:06]}  Kb2 {[%clk 0:00:47]} 61. h7 {[%clk 0:00:06]}  Rxh7 {[%clk 0:00:46]} 62. Ke5 {[%clk 0:00:06]}  Rh5 {[%clk 0:00:45]} 63. Kf6 {[%clk 0:00:06]}  Kc3 {[%clk 0:00:46]} 64. Kg6 {[%clk 0:00:06]}  Rxh3 {[%clk 0:00:45]} 65. Kxf5 {[%clk 0:00:07]}  Kd4 {[%clk 0:00:45]} 66. Ke6 {[%clk 0:00:06]}  Rh6+ {[%clk 0:00:30]} 67. Ke7 {[%clk 0:00:04]}  Kd5 {[%clk 0:00:29]} 68. f5 {[%clk 0:00:04]}  Ke5 {[%clk 0:00:29]} 69. f4+ {[%clk 0:00:03]}  Kxf5 {[%clk 0:00:28]} 0-1


[Site "https://www.chess.com"]

[Event "Titled Tuesday Blitz March 14 Late 2023"]
[White "Ambartsumova, Karina"]
[Black "Makhnev, Denis"]
[WhiteFideId "4166299"]
[BlackFideId "13707647"]
[WhiteElo "2300"]
[BlackElo "2525"]
[Result "0-1"]
[Round "04"]
[TimeControl "180+1"]
[Date "2023.03.14"]
[WhiteClock "0:00:01"]
[BlackClock "0:00:25"]

1. Nf3 {[%clk 0:03:00]}  d5 {[%clk 0:02:59]} 2. c4 {[%clk 0:02:58]}  d4 {[%clk 0:02:59]} 3. e3 {[%clk 0:02:58]}  Nc6 {[%clk 0:02:51]} 4. exd4 {[%clk 0:02:58]}  Nxd4 {[%clk 0:02:51]} 5. Nxd4 {[%clk 0:02:59]}  Qxd4 {[%clk 0:02:51]} 6. Nc3 {[%clk 0:02:58]}  c6 {[%clk 0:02:51]} 7. d3 {[%clk 0:02:58]}  e5 {[%clk 0:02:50]} 8. Be3 {[%clk 0:02:58]}  Qd8 {[%clk 0:02:50]} 9. d4 {[%clk 0:02:53]}  exd4 {[%clk 0:02:50]} 10. Qxd4 {[%clk 0:02:54]}  Qxd4 {[%clk 0:02:50]} 11. Bxd4 {[%clk 0:02:55]}  Ne7 {[%clk 0:02:49]} 12. Bd3 {[%clk 0:02:38]}  Nf5 {[%clk 0:02:49]} 13. Bxf5 {[%clk 0:02:37]}  Bxf5 {[%clk 0:02:49]} 14. O-O {[%clk 0:02:37]}  f6 {[%clk 0:02:47]} 15. Rfe1+ {[%clk 0:02:36]}  Kf7 {[%clk 0:02:48]} 16. Rad1 {[%clk 0:02:33]}  Be7 {[%clk 0:02:30]} 17. Be3 {[%clk 0:02:14]}  b6 {[%clk 0:02:19]} 18. Re2 {[%clk 0:01:47]}  Rhd8 {[%clk 0:02:17]} 19. Red2 {[%clk 0:01:47]}  Rxd2 {[%clk 0:02:08]} 20. Rxd2 {[%clk 0:01:47]}  Be6 {[%clk 0:02:08]} 21. b3 {[%clk 0:01:46]}  Bb4 {[%clk 0:02:08]} 22. Rc2 {[%clk 0:01:40]}  Rd8 {[%clk 0:02:05]} 23. Kf1 {[%clk 0:01:07]}  Rd3 {[%clk 0:01:51]} 24. Na4 {[%clk 0:00:45]}  Rd1+ {[%clk 0:01:26]} 25. Ke2 {[%clk 0:00:45]}  Re1+ {[%clk 0:01:27]} 26. Kf3 {[%clk 0:00:45]}  g5 {[%clk 0:01:28]} 27. h3 {[%clk 0:00:41]}  h5 {[%clk 0:01:27]} 28. Nb2 {[%clk 0:00:27]}  g4+ {[%clk 0:01:12]} 29. hxg4 {[%clk 0:00:27]}  hxg4+ {[%clk 0:01:13]} 30. Kg3 {[%clk 0:00:23]}  Bf5 {[%clk 0:01:12]} 31. Rc1 {[%clk 0:00:20]}  Re2 {[%clk 0:01:12]} 32. Nd1 {[%clk 0:00:13]}  Rxa2 {[%clk 0:01:12]} 33. Bf4 {[%clk 0:00:09]}  Ra3 {[%clk 0:00:52]} 34. Ne3 {[%clk 0:00:08]}  Rxb3 {[%clk 0:00:52]} 35. Kh4 {[%clk 0:00:08]}  Be6 {[%clk 0:00:51]} 36. Rd1 {[%clk 0:00:08]}  Be7 {[%clk 0:00:45]} 37. Ra1 {[%clk 0:00:06]}  a5 {[%clk 0:00:44]} 38. Bc7 {[%clk 0:00:07]}  f5+ {[%clk 0:00:43]} 39. Kh5 {[%clk 0:00:07]}  Bc5 {[%clk 0:00:31]} 40. Re1 {[%clk 0:00:04]}  a4 {[%clk 0:00:29]} 41. g3 {[%clk 0:00:01]}  a3 {[%clk 0:00:28]} 42. Nc2 {[%clk 0:00:01]}  a2 {[%clk 0:00:25]} 0-1


[Site "https://www.chess.com"]

[Event "Titled Tuesday Blitz March 14 Late 2023"]
[White "Ansh M Shah"]
[Black "Aung Thant Zin"]
[WhiteFideId "25033379"]
[BlackFideId "13000063"]
[WhiteElo "2084"]
[BlackElo "2278"]
[Result "1/2-1/2"]
[Round "04"]
[TimeControl "180+1"]
[Date "2023.03.14"]
[WhiteClock "0:00:10"]
[BlackClock "0:00:03"]

1. d4 {[%clk 0:02:54]}  Nf6 {[%clk 0:02:59]} 2. c4 {[%clk 0:02:55]}  e6 {[%clk 0:03:00]} 3. g3 {[%clk 0:02:55]}  d5 {[%clk 0:03:00]} 4. Bg2 {[%clk 0:02:55]}  Be7 {[%clk 0:03:00]} 5. Nf3 {[%clk 0:02:55]}  O-O {[%clk 0:03:01]} 6. O-O {[%clk 0:02:56]}  dxc4 {[%clk 0:03:02]} 7. Qc2 {[%clk 0:02:56]}  a6 {[%clk 0:03:02]} 8. a4 {[%clk 0:02:56]}  Bd7 {[%clk 0:03:01]} 9. Qxc4 {[%clk 0:02:53]}  b5 {[%clk 0:02:59]} 10. Qc2 {[%clk 0:02:46]}  Bc6 {[%clk 0:02:53]} 11. axb5 {[%clk 0:02:38]}  axb5 {[%clk 0:02:52]} 12. Rxa8 {[%clk 0:02:39]}  Bxa8 {[%clk 0:02:52]} 13. Bf4 {[%clk 0:02:39]}  Nd5 {[%clk 0:02:47]} 14. Bd2 {[%clk 0:02:37]}  Na6 {[%clk 0:02:41]} 15. Rc1 {[%clk 0:02:34]}  c5 {[%clk 0:02:39]} 16. dxc5 {[%clk 0:02:33]}  Nxc5 {[%clk 0:02:27]} 17. Nd4 {[%clk 0:02:09]}  Qb6 {[%clk 0:02:12]} 18. e4 {[%clk 0:01:21]}  Nf6 {[%clk 0:02:02]} 19. Be3 {[%clk 0:01:22]}  Ng4 {[%clk 0:01:39]} 20. Nf5 {[%clk 0:00:54]}  exf5 {[%clk 0:01:16]} 21. Bxc5 {[%clk 0:00:54]}  Bxc5 {[%clk 0:01:04]} 22. Qxc5 {[%clk 0:00:55]}  Qxc5 {[%clk 0:00:52]} 23. Rxc5 {[%clk 0:00:56]}  fxe4 {[%clk 0:00:52]} 24. Rxb5 {[%clk 0:00:54]}  Rd8 {[%clk 0:00:50]} 25. Nc3 {[%clk 0:00:53]}  h6 {[%clk 0:00:39]} 26. Bxe4 {[%clk 0:00:50]}  Bxe4 {[%clk 0:00:35]} 27. Nxe4 {[%clk 0:00:51]}  Rd1+ {[%clk 0:00:30]} 28. Kg2 {[%clk 0:00:51]}  Re1 {[%clk 0:00:30]} 29. Nc3 {[%clk 0:00:29]}  Rc1 {[%clk 0:00:27]} 30. h3 {[%clk 0:00:28]}  Nf6 {[%clk 0:00:24]} 31. Rb8+ {[%clk 0:00:25]}  Kh7 {[%clk 0:00:24]} 32. Rb7 {[%clk 0:00:23]}  Kg6 {[%clk 0:00:23]} 33. Rb6 {[%clk 0:00:21]}  Kh7 {[%clk 0:00:21]} 34. Kf3 {[%clk 0:00:18]}  Rc2 {[%clk 0:00:20]} 35. Ne2 {[%clk 0:00:15]}  Nd5 {[%clk 0:00:15]} 36. Rb7 {[%clk 0:00:15]}  f6 {[%clk 0:00:09]} 37. Nd4 {[%clk 0:00:14]}  Rc7 {[%clk 0:00:05]} 38. Rxc7 {[%clk 0:00:14]}  Nxc7 {[%clk 0:00:05]} 39. b4 {[%clk 0:00:14]}  Kg6 {[%clk 0:00:04]} 40. b5 {[%clk 0:00:14]}  Nd5 {[%clk 0:00:03]} 41. Ke4 {[%clk 0:00:13]}  Nb6 {[%clk 0:00:04]} 42. Nc6 {[%clk 0:00:12]}  f5+ {[%clk 0:00:04]} 43. Kd4 {[%clk 0:00:12]}  Kf6 {[%clk 0:00:03]} 44. Kc5 {[%clk 0:00:13]}  Nd7+ {[%clk 0:00:03]} 45. Kd6 {[%clk 0:00:13]}  Nb6 {[%clk 0:00:04]} 46. Kc7 {[%clk 0:00:14]}  Nd5+ {[%clk 0:00:04]} 47. Kb7 {[%clk 0:00:14]}  g5 {[%clk 0:00:04]} 48. b6 {[%clk 0:00:13]}  f4 {[%clk 0:00:04]} 49. Nd4 {[%clk 0:00:13]}  fxg3 {[%clk 0:00:01]} 50. fxg3 {[%clk 0:00:14]}  Ke5 {[%clk 0:00:01]} 51. Ne2 {[%clk 0:00:11]}  Ke4 {[%clk 0:00:01]} 52. Kc6 {[%clk 0:00:11]}  Nxb6 {[%clk 0:00:01]} 53. Kxb6 {[%clk 0:00:12]}  Kf3 {[%clk 0:00:01]} 54. Nd4+ {[%clk 0:00:05]}  Kxg3 {[%clk 0:00:01]} 55. Nf5+ {[%clk 0:00:06]}  Kxh3 {[%clk 0:00:01]} 56. Nxh6 {[%clk 0:00:07]}  Kh4 {[%clk 0:00:01]} 57. Kc5 {[%clk 0:00:07]}  Kh5 {[%clk 0:00:02]} 58. Nf5 {[%clk 0:00:07]}  Kg6 {[%clk 0:00:02]} 59. Ng3 {[%clk 0:00:07]}  g4 {[%clk 0:00:01]} 60. Kd4 {[%clk 0:00:08]}  Kg5 {[%clk 0:00:02]} 61. Ke4 {[%clk 0:00:08]}  Kh4 {[%clk 0:00:02]} 62. Kf4 {[%clk 0:00:09]}  Kh3 {[%clk 0:00:03]} 63. Nh5 {[%clk 0:00:09]}  Kh4 {[%clk 0:00:03]} 64. Ng3 {[%clk 0:00:09]}  Kh3 {[%clk 0:00:03]} 65. Ne4 {[%clk 0:00:10]}  Kh4 {[%clk 0:00:03]} 66. Ng3 {[%clk 0:00:10]} 1/2-1/2


[Site "https://www.chess.com"]